[Event "Titled Tuesday Blitz June 13 Early 2023"]
[White "Tokman, Ariel"]
[Black "Mahdavi, Reza"]
[WhiteFideId "117420"]
[BlackFideId "12595926"]
[WhiteElo "2263"]
[BlackElo "2395"]
[Result "0-1"]
[Round "3"]
[TimeControl "180+2"]
[Date "2023.06.13"]
[WhiteClock "0:00:00"]
[BlackClock "0:00:22"]
[Board "79"]

1. c4 {[%clk 0:03:00]}  e5 {[%clk 0:02:58]} 2. Nc3 {[%clk 0:03:00]}  Nf6 {[%clk 0:02:52]} 3. g3 {[%clk 0:03:00]}  c6 {[%clk 0:02:51]} 4. Nf3 {[%clk 0:03:00]}  e4 {[%clk 0:02:33]} 5. Nd4 {[%clk 0:03:00]}  d5 {[%clk 0:02:30]} 6. cxd5 {[%clk 0:03:00]}  cxd5 {[%clk 0:02:30]} 7. d3 {[%clk 0:03:00]}  Bc5 {[%clk 0:02:27]} 8. Nb3 {[%clk 0:03:00]}  Bb4 {[%clk 0:02:24]} 9. dxe4 {[%clk 0:02:45]}  Nxe4 {[%clk 0:02:23]} 10. Bd2 {[%clk 0:02:45]}  Bxc3 {[%clk 0:02:22]} 11. Bxc3 {[%clk 0:02:44]}  Nxc3 {[%clk 0:02:23]} 12. bxc3 {[%clk 0:02:44]}  O-O {[%clk 0:02:23]} 13. Bg2 {[%clk 0:02:44]}  Be6 {[%clk 0:02:24]} 14. O-O {[%clk 0:02:44]}  Nc6 {[%clk 0:02:24]} 15. Nc5 {[%clk 0:02:35]}  Qe7 {[%clk 0:02:21]} 16. Nxe6 {[%clk 0:02:34]}  fxe6 {[%clk 0:02:22]} 17. Rb1 {[%clk 0:02:21]}  Rad8 {[%clk 0:02:17]} 18. Qa4 {[%clk 0:02:14]}  Qc7 {[%clk 0:01:50]} 19. Qb5 {[%clk 0:01:38]}  Rd7 {[%clk 0:01:22]} 20. Qc5 {[%clk 0:01:02]}  b6 {[%clk 0:01:21]} 21. Qe3 {[%clk 0:01:02]}  Qd6 {[%clk 0:01:16]} 22. Rbc1 {[%clk 0:00:52]}  Ne5 {[%clk 0:01:16]} 23. Qd4 {[%clk 0:00:47]}  Rc8 {[%clk 0:01:12]} 24. Rfd1 {[%clk 0:00:38]}  Rc4 {[%clk 0:01:10]} 25. Qd2 {[%clk 0:00:38]}  Qc5 {[%clk 0:01:08]} 26. Qg5 {[%clk 0:00:33]}  Ng4 {[%clk 0:01:02]} 27. e3 {[%clk 0:00:31]}  Nf6 {[%clk 0:01:01]} 28. Qe5 {[%clk 0:00:28]}  Qd6 {[%clk 0:00:45]} 29. Qxd6 {[%clk 0:00:26]}  Rxd6 {[%clk 0:00:46]} 30. Bf1 {[%clk 0:00:25]}  Rc5 {[%clk 0:00:39]} 31. c4 {[%clk 0:00:23]}  Rdc6 {[%clk 0:00:38]} 32. Rd4 {[%clk 0:00:20]}  e5 {[%clk 0:00:36]} 33. Rdd1 {[%clk 0:00:16]}  dxc4 {[%clk 0:00:32]} 34. Rd8+ {[%clk 0:00:14]}  Kf7 {[%clk 0:00:32]} 35. Ra8 {[%clk 0:00:14]}  Rc7 {[%clk 0:00:32]} 36. Be2 {[%clk 0:00:07]}  c3 {[%clk 0:00:30]} 37. Kf1 {[%clk 0:00:08]}  Rd5 {[%clk 0:00:28]} 38. Rc2 {[%clk 0:00:03]}  Rd2 {[%clk 0:00:20]} 39. Rxd2 {[%clk 0:00:03]}  cxd2 {[%clk 0:00:21]} 40. Bd1 {[%clk 0:00:03]}  Ne4 {[%clk 0:00:22]} 41. Ke2 {[%clk 0:00:03]}  Rd7 {[%clk 0:00:22]} 42. Bb3+ {[%clk 0:00:02]}  Ke7 {[%clk 0:00:21]} 43. Rg8 {[%clk 0:00:01]}  Nc3+ {[%clk 0:00:22]} 44. Kf3 {[%clk 0:00:01]}  Kf6 {[%clk 0:00:22]} 45. Rf8+ {[%clk 0:00:00]}  Kg6 {[%clk 0:00:22]} 0-1


[Site "https://www.chess.com"]

[Event "Titled Tuesday Blitz June 13 Early 2023"]
[White "Aggelis, Nikolaos"]
[Black "Sattarov, Bobir"]
[WhiteFideId "4213220"]
[BlackFideId "14203081"]
[WhiteElo "2189"]
[BlackElo "2351"]
[Result "0-1"]
[Round "3"]
[TimeControl "180+2"]
[Date "2023.06.13"]
[WhiteClock "0:00:09"]
[BlackClock "0:00:16"]
[Board "80"]

1. c4 {[%clk 0:02:58]}  Nf6 {[%clk 0:02:59]} 2. g3 {[%clk 0:02:57]}  e6 {[%clk 0:02:59]} 3. Bg2 {[%clk 0:02:57]}  d5 {[%clk 0:02:59]} 4. Nf3 {[%clk 0:02:57]}  dxc4 {[%clk 0:02:56]} 5. Qa4+ {[%clk 0:02:55]}  Nbd7 {[%clk 0:02:55]} 6. Qxc4 {[%clk 0:02:55]}  c5 {[%clk 0:02:54]} 7. O-O {[%clk 0:02:54]}  b6 {[%clk 0:02:49]} 8. d4 {[%clk 0:02:49]}  Bb7 {[%clk 0:02:47]} 9. Nc3 {[%clk 0:02:47]}  Rc8 {[%clk 0:02:43]} 10. dxc5 {[%clk 0:02:47]}  Bxc5 {[%clk 0:02:40]} 11. Qa4 {[%clk 0:02:47]}  a6 {[%clk 0:02:35]} 12. Rd1 {[%clk 0:02:29]}  b5 {[%clk 0:02:30]} 13. Qh4 {[%clk 0:02:24]}  Qb6 {[%clk 0:02:17]} 14. e3 {[%clk 0:02:18]}  Be7 {[%clk 0:02:14]} 15. Qd4 {[%clk 0:02:14]}  Bc5 {[%clk 0:02:10]} 16. Qh4 {[%clk 0:02:13]}  O-O {[%clk 0:01:57]} 17. Ng5 {[%clk 0:02:13]}  h6 {[%clk 0:01:50]} 18. Nge4 {[%clk 0:02:11]}  Be7 {[%clk 0:01:48]} 19. Nxf6+ {[%clk 0:02:10]}  Bxf6 {[%clk 0:01:47]} 20. Qh5 {[%clk 0:01:55]}  Bxg2 {[%clk 0:01:35]} 21. Kxg2 {[%clk 0:01:56]}  Ne5 {[%clk 0:01:31]} 22. Qe2 {[%clk 0:01:49]}  g6 {[%clk 0:01:03]} 23. Bd2 {[%clk 0:01:43]}  Bg7 {[%clk 0:01:00]} 24. Be1 {[%clk 0:01:43]}  Qb7+ {[%clk 0:00:57]} 25. f3 {[%clk 0:01:42]}  f5 {[%clk 0:00:50]} 26. Rac1 {[%clk 0:01:23]}  g5 {[%clk 0:00:42]} 27. e4 {[%clk 0:01:02]}  g4 {[%clk 0:00:41]} 28. fxg4 {[%clk 0:01:00]}  fxg4 {[%clk 0:00:35]} 29. a3 {[%clk 0:00:58]}  Rf3 {[%clk 0:00:32]} 30. Bf2 {[%clk 0:00:50]}  Rcf8 {[%clk 0:00:33]} 31. Bg1 {[%clk 0:00:50]}  Nc4 {[%clk 0:00:31]} 32. Rf1 {[%clk 0:00:39]}  h5 {[%clk 0:00:27]} 33. h4 {[%clk 0:00:19]}  Be5 {[%clk 0:00:23]} 34. Bf2 {[%clk 0:00:14]}  Ne3+ {[%clk 0:00:16]} 35. Qxe3 {[%clk 0:00:09]}  Rxe3 {[%clk 0:00:16]} 36. Bxe3 {[%clk 0:00:10]}  Rxf1 {[%clk 0:00:16]} 37. Rxf1 {[%clk 0:00:09]}  Bxc3 {[%clk 0:00:16]} 38. bxc3 {[%clk 0:00:10]}  Qxe4+ {[%clk 0:00:16]} 39. Kf2 {[%clk 0:00:09]}  Qf3+ {[%clk 0:00:16]} 0-1


[Site "https://www.chess.com"]

[Event "Titled Tuesday Blitz June 13 Early 2023"]
[White "Atakhan, Abtin"]
[Black "Gomes, Luiz Alexandre de Souza"]
[WhiteFideId "22502203"]
[BlackFideId "2102790"]
[WhiteElo "2008"]
[BlackElo "2506"]
[Result "1-0"]
[Round "3"]
[TimeControl "180+2"]
[Date "2023.06.13"]
[WhiteClock "0:00:12"]
[BlackClock "0:00:13"]
[Board "81"]

1. d4 {[%clk 0:03:00]}  Nf6 {[%clk 0:02:59]} 2. c4 {[%clk 0:03:01]}  c5 {[%clk 0:02:59]} 3. d5 {[%clk 0:03:01]}  b5 {[%clk 0:02:59]} 4. cxb5 {[%clk 0:03:02]}  a6 {[%clk 0:02:59]} 5. bxa6 {[%clk 0:03:03]}  g6 {[%clk 0:03:00]} 6. Nc3 {[%clk 0:03:04]}  d6 {[%clk 0:03:01]} 7. e4 {[%clk 0:03:04]}  Bg7 {[%clk 0:03:01]} 8. Nf3 {[%clk 0:03:03]}  O-O {[%clk 0:03:01]} 9. a7 {[%clk 0:03:02]}  Rxa7 {[%clk 0:03:01]} 10. a4 {[%clk 0:03:02]}  Na6 {[%clk 0:03:00]} 11. Bb5 {[%clk 0:02:57]}  Nb4 {[%clk 0:03:00]} 12. O-O {[%clk 0:02:56]}  Bg4 {[%clk 0:03:00]} 13. Bd2 {[%clk 0:02:41]}  Qa8 {[%clk 0:02:55]} 14. h3 {[%clk 0:02:39]}  Bxf3 {[%clk 0:02:55]} 15. Qxf3 {[%clk 0:02:40]}  Nc2 {[%clk 0:02:55]} 16. Ra2 {[%clk 0:02:32]}  Nd4 {[%clk 0:02:50]} 17. Qd3 {[%clk 0:02:32]}  Rb8 {[%clk 0:02:47]} 18. Bc4 {[%clk 0:02:23]}  Nd7 {[%clk 0:02:41]} 19. f4 {[%clk 0:02:18]}  Nb6 {[%clk 0:02:31]} 20. Be3 {[%clk 0:02:05]}  Nxc4 {[%clk 0:02:13]} 21. Qxc4 {[%clk 0:02:05]}  Rb4 {[%clk 0:02:11]} 22. Qd3 {[%clk 0:02:06]}  Rab7 {[%clk 0:02:10]} 23. Rf2 {[%clk 0:02:00]}  Qb8 {[%clk 0:02:03]} 24. Qd2 {[%clk 0:01:50]}  Rb3 {[%clk 0:01:52]} 25. Kh2 {[%clk 0:01:45]}  R3b4 {[%clk 0:01:43]} 26. Bxd4 {[%clk 0:01:36]}  Bxd4 {[%clk 0:01:38]} 27. Re2 {[%clk 0:01:37]}  Bg7 {[%clk 0:01:26]} 28. Nb5 {[%clk 0:01:17]}  Qa8 {[%clk 0:01:18]} 29. Nc3 {[%clk 0:01:03]}  Rd4 {[%clk 0:01:12]} 30. Qc2 {[%clk 0:01:01]}  Rdb4 {[%clk 0:01:10]} 31. a5 {[%clk 0:00:55]}  Ra7 {[%clk 0:01:08]} 32. e5 {[%clk 0:00:48]}  Rxf4 {[%clk 0:01:04]} 33. exd6 {[%clk 0:00:47]}  exd6 {[%clk 0:01:05]} 34. Nb5 {[%clk 0:00:36]}  Rxa5 {[%clk 0:00:57]} 35. Rxa5 {[%clk 0:00:29]}  Qxa5 {[%clk 0:00:58]} 36. Re8+ {[%clk 0:00:27]}  Bf8 {[%clk 0:00:58]} 37. Qe2 {[%clk 0:00:23]}  Kg7 {[%clk 0:00:39]} 38. Rc8 {[%clk 0:00:21]}  Rf5 {[%clk 0:00:17]} 39. Qe8 {[%clk 0:00:16]}  Qd2 {[%clk 0:00:14]} 40. Qxf8+ {[%clk 0:00:15]}  Kf6 {[%clk 0:00:15]} 41. Qxd6+ {[%clk 0:00:14]}  Kg7 {[%clk 0:00:15]} 42. Qf8+ {[%clk 0:00:14]}  Kf6 {[%clk 0:00:16]} 43. Qh8+ {[%clk 0:00:12]}  Kg5 {[%clk 0:00:16]} 44. Qc3 {[%clk 0:00:10]}  Qf4+ {[%clk 0:00:15]} 45. Qg3+ {[%clk 0:00:10]}  Qxg3+ {[%clk 0:00:15]} 46. Kxg3 {[%clk 0:00:11]}  Rxd5 {[%clk 0:00:16]} 47. Nc3 {[%clk 0:00:11]}  Rd3+ {[%clk 0:00:16]} 48. Kh2 {[%clk 0:00:12]}  f5 {[%clk 0:00:16]} 49. Rxc5 {[%clk 0:00:12]}  Rd2 {[%clk 0:00:13]} 50. Ne4+ {[%clk 0:00:12]} 1-0


[Site "https://www.chess.com"]

[Event "Titled Tuesday Blitz June 13 Early 2023"]
[White "Djordjevic, Vuk"]
[Black "Mrithyunjay Mahadevan"]
[WhiteFideId "902098"]
[BlackFideId "45003521"]
[WhiteElo "2463"]
[BlackElo "1626"]
[Result "1-0"]
[Round "3"]
[TimeControl "180+2"]
[Date "2023.06.13"]
[WhiteClock "0:00:07"]
[BlackClock "0:00:43"]
[Board "85"]

1. d4 {[%clk 0:03:00]}  Nf6 {[%clk 0:02:53]} 2. Bg5 {[%clk 0:03:01]}  d5 {[%clk 0:02:52]} 3. Bxf6 {[%clk 0:03:01]}  gxf6 {[%clk 0:02:52]} 4. e3 {[%clk 0:03:01]}  c5 {[%clk 0:02:50]} 5. dxc5 {[%clk 0:03:01]}  Nc6 {[%clk 0:02:48]} 6. Nf3 {[%clk 0:03:00]}  e5 {[%clk 0:02:47]} 7. Be2 {[%clk 0:02:52]}  Bxc5 {[%clk 0:02:46]} 8. O-O {[%clk 0:02:52]}  Be6 {[%clk 0:02:46]} 9. Nbd2 {[%clk 0:02:51]}  Rg8 {[%clk 0:02:46]} 10. Kh1 {[%clk 0:02:47]}  f5 {[%clk 0:02:45]} 11. Bb5 {[%clk 0:02:37]}  Bd6 {[%clk 0:02:43]} 12. c4 {[%clk 0:02:31]}  a6 {[%clk 0:02:35]} 13. cxd5 {[%clk 0:02:30]}  Bxd5 {[%clk 0:02:34]} 14. Bc4 {[%clk 0:02:23]}  Be6 {[%clk 0:02:19]} 15. e4 {[%clk 0:02:10]}  fxe4 {[%clk 0:02:09]} 16. Nxe4 {[%clk 0:02:05]}  Be7 {[%clk 0:02:05]} 17. Bxe6 {[%clk 0:02:03]}  Qxd1 {[%clk 0:02:03]} 18. Bxf7+ {[%clk 0:01:48]}  Kxf7 {[%clk 0:02:04]} 19. Raxd1 {[%clk 0:01:41]}  Rad8 {[%clk 0:02:04]} 20. Rfe1 {[%clk 0:01:07]}  h6 {[%clk 0:01:58]} 21. Kg1 {[%clk 0:01:05]}  Ke6 {[%clk 0:01:57]} 22. Ned2 {[%clk 0:01:05]}  b5 {[%clk 0:01:50]} 23. Kf1 {[%clk 0:00:53]}  Bb4 {[%clk 0:01:47]} 24. Re2 {[%clk 0:00:28]}  Rd5 {[%clk 0:01:38]} 25. a3 {[%clk 0:00:27]}  Ba5 {[%clk 0:01:33]} 26. Rc1 {[%clk 0:00:28]}  Nd4 {[%clk 0:01:25]} 27. Nxd4+ {[%clk 0:00:25]}  Rxd4 {[%clk 0:01:26]} 28. Nb3 {[%clk 0:00:25]}  Bb6 {[%clk 0:01:13]} 29. Nxd4+ {[%clk 0:00:23]}  Bxd4 {[%clk 0:01:14]} 30. Rc6+ {[%clk 0:00:23]}  Kd5 {[%clk 0:01:15]} 31. Rxh6 {[%clk 0:00:22]}  a5 {[%clk 0:01:13]} 32. Ra6 {[%clk 0:00:20]}  a4 {[%clk 0:01:13]} 33. h4 {[%clk 0:00:20]}  Rg4 {[%clk 0:01:12]} 34. g3 {[%clk 0:00:20]}  Kc4 {[%clk 0:01:12]} 35. Ra8 {[%clk 0:00:17]}  Kb3 {[%clk 0:01:12]} 36. Rb8 {[%clk 0:00:18]}  Kc4 {[%clk 0:01:10]} 37. h5 {[%clk 0:00:17]}  Rg5 {[%clk 0:01:09]} 38. h6 {[%clk 0:00:06]}  Rh5 {[%clk 0:01:09]} 39. Rh8 {[%clk 0:00:06]}  Kd3 {[%clk 0:01:09]} 40. Re1 {[%clk 0:00:01]}  Rh2 {[%clk 0:01:06]} 41. Kg1 {[%clk 0:00:01]}  Rxf2 {[%clk 0:01:05]} 42. Kh1 {[%clk 0:00:01]}  Rf5 {[%clk 0:00:52]} 43. h7 {[%clk 0:00:01]}  Rh5+ {[%clk 0:00:52]} 44. Kg2 {[%clk 0:00:02]}  Kd2 {[%clk 0:00:52]} 45. Re4 {[%clk 0:00:02]}  Kd3 {[%clk 0:00:49]} 46. Rh4 {[%clk 0:00:02]}  e4 {[%clk 0:00:46]} 47. Rxh5 {[%clk 0:00:03]}  Bxh8 {[%clk 0:00:45]} 48. Rd5+ {[%clk 0:00:03]}  Kc4 {[%clk 0:00:43]} 49. Rd8 {[%clk 0:00:03]}  Bxb2 {[%clk 0:00:44]} 50. h8=Q {[%clk 0:00:03]}  Bxh8 {[%clk 0:00:44]} 51. Rxh8 {[%clk 0:00:04]}  Kb3 {[%clk 0:00:42]} 52. g4 {[%clk 0:00:04]}  Kxa3 {[%clk 0:00:43]} 53. g5 {[%clk 0:00:04]}  Kb2 {[%clk 0:00:41]} 54. g6 {[%clk 0:00:05]}  a3 {[%clk 0:00:42]} 55. g7 {[%clk 0:00:06]}  a2 {[%clk 0:00:43]} 56. Ra8 {[%clk 0:00:06]}  a1=Q {[%clk 0:00:42]} 57. Rxa1 {[%clk 0:00:06]}  Kxa1 {[%clk 0:00:43]} 58. g8=Q {[%clk 0:00:07]}  b4 {[%clk 0:00:43]} 59. Qb3 {[%clk 0:00:06]}  e3 {[%clk 0:00:44]} 60. Qxe3 {[%clk 0:00:05]}  b3 {[%clk 0:00:43]} 61. Qc1+ {[%clk 0:00:05]}  Ka2 {[%clk 0:00:43]} 62. Qc4 {[%clk 0:00:06]}  Ka1 {[%clk 0:00:42]} 63. Kf2 {[%clk 0:00:05]}  b2 {[%clk 0:00:43]} 64. Qa4+ {[%clk 0:00:05]}  Kb1 {[%clk 0:00:42]} 65. Ke2 {[%clk 0:00:06]}  Kc1 {[%clk 0:00:43]} 66. Qd1# {[%clk 0:00:07]} 1-0


[Site "https://www.chess.com"]

[Event "Titled Tuesday Blitz June 13 Early 2023"]
[White "whiteglovethief"]
[Black "Karthik Rajaa"]
[BlackFideId "25035215"]
[WhiteElo "2502"]
[BlackElo "2215"]
[Result "1/2-1/2"]
[Round "3"]
[TimeControl "180+2"]
[Date "2023.06.13"]
[WhiteClock "0:00:05"]
[BlackClock "0:00:05"]
[Board "87"]

1. d4 {[%clk 0:03:00]}  Nf6 {[%clk 0:02:58]} 2. c4 {[%clk 0:03:01]}  g6 {[%clk 0:02:59]} 3. Nc3 {[%clk 0:03:00]}  Bg7 {[%clk 0:02:58]} 4. e4 {[%clk 0:03:01]}  d6 {[%clk 0:02:59]} 5. Nf3 {[%clk 0:03:01]}  O-O {[%clk 0:02:59]} 6. Be2 {[%clk 0:03:01]}  Nbd7 {[%clk 0:03:00]} 7. O-O {[%clk 0:03:00]}  e5 {[%clk 0:03:00]} 8. Bg5 {[%clk 0:02:59]}  h6 {[%clk 0:02:58]} 9. Bh4 {[%clk 0:02:59]}  g5 {[%clk 0:02:54]} 10. Bg3 {[%clk 0:02:59]}  Nh5 {[%clk 0:02:50]} 11. dxe5 {[%clk 0:02:58]}  Nxg3 {[%clk 0:02:48]} 12. hxg3 {[%clk 0:02:57]}  dxe5 {[%clk 0:02:47]} 13. Ne1 {[%clk 0:02:51]}  Nc5 {[%clk 0:02:45]} 14. Nd3 {[%clk 0:02:50]}  Ne6 {[%clk 0:02:44]} 15. Bg4 {[%clk 0:02:48]}  Nd4 {[%clk 0:02:44]} 16. Bxc8 {[%clk 0:02:44]}  Rxc8 {[%clk 0:02:45]} 17. Ne2 {[%clk 0:02:42]}  c6 {[%clk 0:02:25]} 18. Nxd4 {[%clk 0:02:40]}  Qxd4 {[%clk 0:02:26]} 19. Qb3 {[%clk 0:02:25]}  Qxe4 {[%clk 0:02:25]} 20. Nc5 {[%clk 0:02:24]}  Qd4 {[%clk 0:02:10]} 21. Nxb7 {[%clk 0:02:23]}  Rb8 {[%clk 0:01:47]} 22. Rad1 {[%clk 0:02:20]}  Qg4 {[%clk 0:01:48]} 23. Rfe1 {[%clk 0:01:36]}  Rfe8 {[%clk 0:01:27]} 24. c5 {[%clk 0:01:16]}  Bf8 {[%clk 0:00:38]} 25. Rd6 {[%clk 0:00:43]}  Bxd6 {[%clk 0:00:31]} 26. cxd6 {[%clk 0:00:44]}  Qc8 {[%clk 0:00:24]} 27. d7 {[%clk 0:00:38]}  Qxd7 {[%clk 0:00:24]} 28. Nc5 {[%clk 0:00:38]}  Qd2 {[%clk 0:00:23]} 29. Qd1 {[%clk 0:00:23]}  Rxb2 {[%clk 0:00:19]} 30. Qxd2 {[%clk 0:00:18]}  Rxd2 {[%clk 0:00:20]} 31. Ne4 {[%clk 0:00:19]}  Rxa2 {[%clk 0:00:15]} 32. Nf6+ {[%clk 0:00:20]}  Kf8 {[%clk 0:00:15]} 33. Nxe8 {[%clk 0:00:18]}  Kxe8 {[%clk 0:00:16]} 34. Rxe5+ {[%clk 0:00:18]}  Kd7 {[%clk 0:00:17]} 35. Rf5 {[%clk 0:00:19]}  Ke6 {[%clk 0:00:16]} 36. Rc5 {[%clk 0:00:19]}  Ra6 {[%clk 0:00:16]} 37. f4 {[%clk 0:00:17]}  gxf4 {[%clk 0:00:11]} 38. gxf4 {[%clk 0:00:18]}  f5 {[%clk 0:00:10]} 39. Kf2 {[%clk 0:00:16]}  Kf6 {[%clk 0:00:09]} 40. Kg3 {[%clk 0:00:15]}  Rb6 {[%clk 0:00:09]} 41. Ra5 {[%clk 0:00:14]}  a6 {[%clk 0:00:09]} 42. Kh4 {[%clk 0:00:12]}  Kg6 {[%clk 0:00:09]} 43. Kh3 {[%clk 0:00:11]}  Rb3+ {[%clk 0:00:08]} 44. g3 {[%clk 0:00:11]}  Rb6 {[%clk 0:00:08]} 45. Rc5 {[%clk 0:00:10]}  Kf6 {[%clk 0:00:06]} 46. Kh4 {[%clk 0:00:10]}  a5 {[%clk 0:00:05]} 47. Rxa5 {[%clk 0:00:08]}  Rb8 {[%clk 0:00:05]} 48. Rc5 {[%clk 0:00:06]}  Rc8 {[%clk 0:00:06]} 49. Kh5 {[%clk 0:00:06]}  Ke6 {[%clk 0:00:04]} 50. Kxh6 {[%clk 0:00:06]}  Kf6 {[%clk 0:00:04]} 51. Kh7 {[%clk 0:00:05]}  Rc7+ {[%clk 0:00:04]} 52. Kh6 {[%clk 0:00:05]}  Rc8 {[%clk 0:00:05]} 53. Kh7 {[%clk 0:00:05]}  Rc7+ {[%clk 0:00:05]} 54. Kh6 {[%clk 0:00:05]}  Rc8 {[%clk 0:00:05]} 1/2-1/2


[Site "https://www.chess.com"]

[Event "Titled Tuesday Blitz June 13 Early 2023"]
[White "Sammed Jaykumar, Shete"]
[Black "Taboas Rodriguez, Daniel"]
[WhiteFideId "5073421"]
[BlackFideId "2208466"]
[WhiteElo "2296"]
[BlackElo "2365"]
[Result "1/2-1/2"]
[Round "3"]
[TimeControl "180+2"]
[Date "2023.06.13"]
[WhiteClock "0:00:26"]
[BlackClock "0:00:14"]
[Board "93"]

1. d4 {[%clk 0:03:00]}  Nf6 {[%clk 0:02:59]} 2. c4 {[%clk 0:03:00]}  g6 {[%clk 0:02:59]} 3. Nc3 {[%clk 0:02:55]}  Bg7 {[%clk 0:03:00]} 4. Bg5 {[%clk 0:02:52]}  O-O {[%clk 0:02:58]} 5. e4 {[%clk 0:02:48]}  d6 {[%clk 0:02:58]} 6. Qd2 {[%clk 0:02:43]}  Nc6 {[%clk 0:02:52]} 7. Be2 {[%clk 0:02:38]}  e5 {[%clk 0:02:50]} 8. d5 {[%clk 0:02:36]}  Nd4 {[%clk 0:02:50]} 9. Nf3 {[%clk 0:02:31]}  Nxe2 {[%clk 0:02:41]} 10. Qxe2 {[%clk 0:02:32]}  h6 {[%clk 0:02:37]} 11. Be3 {[%clk 0:02:29]}  Nh5 {[%clk 0:02:37]} 12. g3 {[%clk 0:02:25]}  f5 {[%clk 0:02:23]} 13. exf5 {[%clk 0:02:22]}  Bxf5 {[%clk 0:02:23]} 14. Nd2 {[%clk 0:02:20]}  Nf6 {[%clk 0:01:55]} 15. f3 {[%clk 0:02:17]}  h5 {[%clk 0:01:52]} 16. O-O-O {[%clk 0:02:14]}  a6 {[%clk 0:01:51]} 17. Nde4 {[%clk 0:02:11]}  Nxe4 {[%clk 0:01:47]} 18. Nxe4 {[%clk 0:02:10]}  b5 {[%clk 0:01:47]} 19. c5 {[%clk 0:02:09]}  Bxe4 {[%clk 0:01:22]} 20. fxe4 {[%clk 0:02:10]}  Kh7 {[%clk 0:01:23]} 21. h3 {[%clk 0:02:00]}  Bh6 {[%clk 0:01:22]} 22. Qd2 {[%clk 0:01:49]}  Bxe3 {[%clk 0:01:16]} 23. Qxe3 {[%clk 0:01:50]}  Qf6 {[%clk 0:01:15]} 24. Rd2 {[%clk 0:01:43]}  Qf3 {[%clk 0:01:13]} 25. Re1 {[%clk 0:01:41]}  Rf6 {[%clk 0:01:03]} 26. Rc2 {[%clk 0:01:36]}  Raf8 {[%clk 0:01:02]} 27. cxd6 {[%clk 0:01:29]}  cxd6 {[%clk 0:01:03]} 28. Rc6 {[%clk 0:01:22]}  Qg2 {[%clk 0:00:58]} 29. Rc7+ {[%clk 0:01:19]}  R8f7 {[%clk 0:00:55]} 30. Qa7 {[%clk 0:01:19]}  Kg7 {[%clk 0:00:48]} 31. Kb1 {[%clk 0:01:10]}  Qxg3 {[%clk 0:00:46]} 32. Rec1 {[%clk 0:01:10]}  Qd3+ {[%clk 0:00:44]} 33. Ka1 {[%clk 0:01:09]}  Qxe4 {[%clk 0:00:43]} 34. Qxa6 {[%clk 0:01:03]}  Qxd5 {[%clk 0:00:39]} 35. Rc8 {[%clk 0:01:00]}  Rf1 {[%clk 0:00:36]} 36. a3 {[%clk 0:00:58]}  Qd2 {[%clk 0:00:23]} 37. Kb1 {[%clk 0:00:35]}  Qd3+ {[%clk 0:00:22]} 38. Ka2 {[%clk 0:00:34]}  Qd5+ {[%clk 0:00:20]} 39. Ka1 {[%clk 0:00:32]}  R1f2 {[%clk 0:00:16]} 40. Rb8 {[%clk 0:00:29]}  Rf1 {[%clk 0:00:14]} 41. Rc8 {[%clk 0:00:26]} 1/2-1/2


[Site "https://www.chess.com"]

[Event "Titled Tuesday Blitz June 13 Early 2023"]
[White "cristianserban1"]
[Black "Itgelt, Khuyagtsogt"]
[BlackFideId "4902912"]
[WhiteElo "2491"]
[BlackElo "2227"]
[Result "1-0"]
[Round "3"]
[TimeControl "180+2"]
[Date "2023.06.13"]
[WhiteClock "0:00:13"]
[BlackClock "0:00:05"]
[Board "94"]

1. d4 {[%clk 0:03:00]}  Nf6 {[%clk 0:02:58]} 2. Bf4 {[%clk 0:03:00]}  g6 {[%clk 0:02:57]} 3. Nc3 {[%clk 0:03:01]}  d5 {[%clk 0:02:53]} 4. e3 {[%clk 0:03:00]}  Bg7 {[%clk 0:02:53]} 5. Nf3 {[%clk 0:03:00]}  O-O {[%clk 0:02:51]} 6. Nb5 {[%clk 0:03:00]}  Na6 {[%clk 0:02:48]} 7. h3 {[%clk 0:03:00]}  c6 {[%clk 0:02:48]} 8. Nc3 {[%clk 0:02:59]}  c5 {[%clk 0:02:49]} 9. Bxa6 {[%clk 0:02:54]}  bxa6 {[%clk 0:02:50]} 10. dxc5 {[%clk 0:02:54]}  Qa5 {[%clk 0:02:50]} 11. c6 {[%clk 0:02:43]}  Ne4 {[%clk 0:02:46]} 12. O-O {[%clk 0:02:35]}  Nxc3 {[%clk 0:02:45]} 13. bxc3 {[%clk 0:02:35]}  Qxc3 {[%clk 0:02:41]} 14. Qxd5 {[%clk 0:02:29]}  Be6 {[%clk 0:02:39]} 15. Qe4 {[%clk 0:02:09]}  Qc4 {[%clk 0:02:24]} 16. Nd4 {[%clk 0:02:03]}  Bd5 {[%clk 0:02:18]} 17. Qxe7 {[%clk 0:01:55]}  Bxc6 {[%clk 0:02:10]} 18. Rad1 {[%clk 0:01:53]}  Ba4 {[%clk 0:02:01]} 19. Qa3 {[%clk 0:01:47]}  Rfd8 {[%clk 0:01:47]} 20. Bg5 {[%clk 0:01:15]}  Rd5 {[%clk 0:01:36]} 21. Be7 {[%clk 0:00:54]}  Re8 {[%clk 0:01:25]} 22. Nb3 {[%clk 0:00:45]}  Bb5 {[%clk 0:01:13]} 23. Na5 {[%clk 0:00:20]}  Qe4 {[%clk 0:01:11]} 24. Rxd5 {[%clk 0:00:18]}  Qxd5 {[%clk 0:01:12]} 25. Rc1 {[%clk 0:00:12]}  Qd2 {[%clk 0:01:07]} 26. Bb4 {[%clk 0:00:12]}  Qe2 {[%clk 0:00:39]} 27. c4 {[%clk 0:00:12]}  Bb2 {[%clk 0:00:36]} 28. Qb3 {[%clk 0:00:02]}  Bxc1 {[%clk 0:00:35]} 29. cxb5 {[%clk 0:00:02]}  Qxb5 {[%clk 0:00:18]} 30. Qc3 {[%clk 0:00:03]}  Rd8 {[%clk 0:00:10]} 31. Nc6 {[%clk 0:00:02]}  Re8 {[%clk 0:00:04]} 32. Ne7+ {[%clk 0:00:02]}  Rxe7 {[%clk 0:00:04]} 33. Bxe7 {[%clk 0:00:02]}  Bb2 {[%clk 0:00:04]} 34. Qc8+ {[%clk 0:00:01]}  Kg7 {[%clk 0:00:03]} 35. Bg5 {[%clk 0:00:02]}  f6 {[%clk 0:00:01]} 36. Bf4 {[%clk 0:00:02]}  Kf7 {[%clk 0:00:02]} 37. Qc7+ {[%clk 0:00:03]}  Ke6 {[%clk 0:00:01]} 38. Qxa7 {[%clk 0:00:03]}  Qc6 {[%clk 0:00:01]} 39. Qb8 {[%clk 0:00:03]}  g5 {[%clk 0:00:02]} 40. Bg3 {[%clk 0:00:03]}  h5 {[%clk 0:00:01]} 41. Qg8+ {[%clk 0:00:03]}  Kf5 {[%clk 0:00:01]} 42. Qh7+ {[%clk 0:00:04]}  Ke6 {[%clk 0:00:01]} 43. Qxh5 {[%clk 0:00:05]}  Kd5 {[%clk 0:00:02]} 44. Kh2 {[%clk 0:00:05]}  Qc1 {[%clk 0:00:03]} 45. Qf3+ {[%clk 0:00:06]}  Kc4 {[%clk 0:00:03]} 46. Qe4+ {[%clk 0:00:06]}  Kb5 {[%clk 0:00:03]} 47. Qd5+ {[%clk 0:00:06]}  Qc5 {[%clk 0:00:04]} 48. Qb3+ {[%clk 0:00:07]}  Qb4 {[%clk 0:00:04]} 49. e4 {[%clk 0:00:07]}  Qxb3 {[%clk 0:00:04]} 50. axb3 {[%clk 0:00:07]}  Kb4 {[%clk 0:00:04]} 51. f4 {[%clk 0:00:07]}  Kxb3 {[%clk 0:00:04]} 52. fxg5 {[%clk 0:00:07]}  fxg5 {[%clk 0:00:05]} 53. e5 {[%clk 0:00:08]}  Kc4 {[%clk 0:00:03]} 54. e6 {[%clk 0:00:08]}  Bf6 {[%clk 0:00:03]} 55. Bd6 {[%clk 0:00:07]}  Kd5 {[%clk 0:00:03]} 56. e7 {[%clk 0:00:08]}  Bxe7 {[%clk 0:00:04]} 57. Bxe7 {[%clk 0:00:09]}  a5 {[%clk 0:00:03]} 58. g3 {[%clk 0:00:09]}  a4 {[%clk 0:00:04]} 59. h4 {[%clk 0:00:09]}  gxh4 {[%clk 0:00:04]} 60. gxh4 {[%clk 0:00:10]}  Ke6 {[%clk 0:00:04]} 61. Ba3 {[%clk 0:00:10]}  Kf5 {[%clk 0:00:05]} 62. Kh3 {[%clk 0:00:11]}  Kg6 {[%clk 0:00:06]} 63. Kg4 {[%clk 0:00:11]}  Kh6 {[%clk 0:00:06]} 64. h5 {[%clk 0:00:12]}  Kh7 {[%clk 0:00:07]} 65. Kg5 {[%clk 0:00:12]}  Kg8 {[%clk 0:00:08]} 66. h6 {[%clk 0:00:13]}  Kh7 {[%clk 0:00:05]} 67. Kh5 {[%clk 0:00:13]} 1-0


[Site "https://www.chess.com"]